fUSD/lending_fUSD_20260404
["ID","MTS","AMOUNT","RATE_DAILY","PERIOD"]
[419668936,1775272240018,-711.0,0.00014769,2]
[419668937,1775272240027,-711.0,0.0001478,2]
[419668938,1775272240036,-1000.0,0.00014798,2]
[419668939,1775272240045,-1007.047752,0.00014798,2]
[419668940,1775272240054,-203.7698014,0.00014798,2]
[419668941,1775272240063,-1000.0,0.00014798,2]
[419668942,1775272240072,-15649.78,0.00014798,2]
[419668943,1775272240082,-150.0,0.000148,2]
[419668944,1775272240092,-711.0,0.00014805,2]
[419668945,1775272240102,-150.0,0.00014836,2]
[419668946,1775272240112,-7298.34982605,0.00014907,2]
[419668947,1775272240122,-711.0,0.00014912,2]
[419668948,1775272240132,-11913.75907751,0.00014926,2]
[419668949,1775272240141,-150.0,0.00014933,2]
[419668950,1775272240151,-711.0,0.00014935,2]
[419668951,1775272240161,-711.0,0.00014948,2]
[419668952,1775272240171,-500.0,0.00014976,2]
[419668953,1775272240181,-150.0,0.00014982,2]
[419668954,1775272240190,-300.0,0.00015,2]
[419668955,1775272240199,-150.0,0.00015,2]
[419668956,1775272240208,-3044.58224996,0.00015,2]
[419668957,1775272240218,-4081.0,0.00015007,2]
[419668958,1775272240227,-711.0,0.00015011,2]
[419668959,1775272240236,-711.0,0.00015035,2]
[419668960,1775272240246,-150.0,0.0001504,2]
[419668961,1775272240255,-194.72792766,0.0001504,2]
[419668962,1775272240264,-535547.5,0.00015049,2]
[419668963,1775272240273,-534.63,0.00015068,2]
[419668964,1775272240282,-4081.0,0.00015086,2]
[419668965,1775272240292,-711.0,0.00015089,2]
[419668966,1775272240302,-511.12151388,0.00015098,2]
[419668967,1775272240311,-150.0,0.00015111,2]
[419668968,1775272240320,-11913.75907751,0.00015121,2]
[419668970,1775272240330,-150.0,0.00015127,2]
[419668971,1775272240339,-2351.0,0.00015163,2]
[419668972,1775272240348,-150.0,0.000152,2]
[419668973,1775272240357,-150.0,0.000152,2]
[419668974,1775272240367,-150.0,0.000152,2]
[419668975,1775272240376,-150.0,0.000152,2]
[419668976,1775272240385,-150.0,0.000152,2]
[419668977,1775272240395,-150.0,0.000152,2]
[419668978,1775272240404,-2000.0,0.000152,2]
[419668979,1775272240414,-150.0,0.00015273,2]
[419668980,1775272240423,-213.9698,0.00015288,7]
[419668981,1775272240432,-150.0,0.00015289,2]
[419668982,1775272240442,-433.0,0.00015299,2]
[419668983,1775272240451,-1517.64,0.000153,2]
[419668984,1775272240461,-4081.0,0.0001531,2]
[419668985,1775272240470,-4081.0,0.0001531,2]
[419668986,1775272240479,-11913.75907751,0.00015316,2]
[419668987,1775272240489,-1345.9608693,0.00015346,2]
[419668988,1775272240498,-150.0,0.0001536,2]
[419668989,1775272240507,-150.0,0.000154,2]
[419668990,1775272240517,-2000.0,0.000154,2]
[419668991,1775272240526,-2007.0,0.000154,2]
[419668992,1775272240536,-2000.0,0.000154,2]
[419668993,1775272240545,-200.0,0.000154,5]
[419668994,1775272240554,-2000.0,0.000154,2]
[419668995,1775272240563,-2000.0,0.000154,2]
[419668996,1775272240572,-512.53794019,0.000154,2]
[419668997,1775272240582,-4081.0,0.00015409,2]
[419668998,1775272240591,-150.0,0.00015418,2]
[419668999,1775272240600,-150.0,0.00015467,2]
[419669000,1775272240610,-587.0,0.00015483,2]
[419669001,1775272240619,-17897.3012,0.00015493,2]
[419669002,1775272240628,-6772.9161,0.00015493,2]
[419669003,1775272240638,-3543.5475,0.00015493,2]
[419669004,1775272240647,-153.64087258,0.00015493,2]
[419669005,1775272240656,-500.0,0.000155,5]
[419669006,1775272240665,-1231.35459603,0.000155,2]
[419669007,1775272240675,-3605.23,0.00015507,2]
[419669008,1775272240684,-11913.75907751,0.0001551,2]
[419669009,1775272240693,-4081.0,0.00015511,2]
[419669010,1775272240702,-710.0,0.00015563,5]
[419669011,1775272240712,-150.0,0.00015564,2]
[419669012,1775272240721,-299.76912768,0.00015588,2]
[419669013,1775272240731,-4081.0,0.00015592,2]
[419669014,1775272240742,-150.0,0.000156,2]
[419669015,1775272240751,-800.0,0.000156,5]
[419669016,1775272240760,-4081.0,0.00015612,2]
[419669017,1775272240769,-500.0,0.0001562,2]
[419669018,1775272240779,-150.0,0.00015644,2]
[419669019,1775272240788,-150.0,0.0001568,2]
[419669020,1775272240798,-5490.724,0.00015681,2]
[419669021,1775272240808,-417.37182346,0.000157,2]
[419669022,1775272240817,-2500.0,0.000157,2]
[419669023,1775272240827,-1100.0,0.000157,5]
[419669024,1775272240836,-417.9675713,0.000157,2]
[419669025,1775272240846,-4573.48923256,0.000157,2]
[419669026,1775272240855,-6659.450097,0.000157,2]
[419669027,1775272240864,-959.26300382,0.000157,2]
[419669028,1775272240873,-445.73928416,0.000157,2]
[419669029,1775272240883,-11913.75907751,0.00015705,2]
[419669030,1775272240892,-150.0,0.00015709,2]
[419669031,1775272240901,-500.0,0.00015719,2]
[419669032,1775272240911,-1000.0,0.0001573,2]
[419669033,1775272240920,-150.0,0.00015732,2]
[419669034,1775272240930,-6659.45009698,0.0001574,2]
[419669035,1775272240939,-306.259251,0.00015753,2]
[419669036,1775272240948,-6659.45009698,0.0001578,2]
[419669037,1775272240958,-4081.0,0.00015781,2]
[419669038,1775272240967,-297.05355748,0.0001579,2]
[419669039,1775272240976,-151.0,0.00015797,2]
[419669040,1775272240986,-500.0,0.00015799,2]
[419669041,1775272240995,-500.0,0.00015799,2]
[419669042,1775272241004,-500.0,0.00015799,2]
[419669043,1775272241014,-500.0,0.00015799,2]
[419669044,1775272241023,-500.0,0.00015799,2]
[419669045,1775272241032,-500.0,0.00015799,2]
[419669046,1775272241041,-500.0,0.00015799,2]
[419669047,1775272241050,-322.40547967,0.00015799,2]
[419669048,1775272241060,-500.0,0.00015799,2]
[419669049,1775272241069,-500.0,0.00015799,2]
[419669050,1775272241078,-500.0,0.00015799,2]
[419669051,1775272241087,-500.0,0.00015799,2]
[419669052,1775272241096,-500.0,0.00015799,2]
[419669053,1775272241106,-500.0,0.00015799,2]
[419669054,1775272241115,-500.0,0.00015799,2]
[419669055,1775272241124,-897.0,0.000158,5]
[419669056,1775272241134,-2500000.0,0.000158,2]
[419669057,1775272241144,-153.517142,0.000158,2]
[419669058,1775272241153,-417.37182346,0.000158,2]
[419669059,1775272241162,-150.0,0.000158,2]
[419669060,1775272241172,-501.088556,0.000158,2]
[419669061,1775272241181,-501.088556,0.000158,2]
[419669062,1775272241190,-660.913974,0.000158,2]
[419669063,1775272241199,-501.088556,0.000158,2]
[419669064,1775272241208,-501.088556,0.000158,2]
[419669065,1775272241218,-660.913974,0.000158,2]
[419669066,1775272241226,-660.913974,0.000158,2]
[419669067,1775272241236,-660.913974,0.000158,2]
[419669068,1775272241245,-1400.0,0.000158,5]
[419669069,1775272241254,-151.0,0.000158,2]
[419669070,1775272241263,-151.0,0.000158,2]
[419669071,1775272241273,-151.0,0.000158,2]
[419669072,1775272241282,-313.327004,0.000158,2]
[419669073,1775272241290,-313.327004,0.000158,2]
[419669074,1775272241299,-313.327004,0.000158,2]
[419669075,1775272241309,-313.327004,0.000158,2]
[419669076,1775272241318,-959.2630038,0.000158,2]
[419669077,1775272241327,-445.73928415,0.000158,2]
[419669078,1775272241335,-2259.03257639,0.00015807,2]
[419669079,1775272241344,-150.0,0.00015819,2]
[419669080,1775272241354,-6659.45009698,0.0001582,2]
[419669081,1775272241363,-150.0,0.00015822,2]
[419669082,1775272241372,-1000.0,0.00015826,2]
[419669083,1775272241381,-150.0,0.00015828,2]
[419669084,1775272241390,-150.0,0.00015832,2]
[419669085,1775272241399,-1000.0,0.00015833,2]
[419669086,1775272241407,-150.0,0.00015833,2]
[419669087,1775272241417,-1000.0,0.00015835,2]
[419669088,1775272241426,-150.0,0.00015855,2]
[419669089,1775272241435,-150.0,0.00015857,2]
[419669090,1775272241444,-6659.45009698,0.0001586,2]
[419669091,1775272241455,-1000.0,0.00015867,2]
[419669092,1775272241464,-502.44039486,0.00015873,2]
[419669093,1775272241473,-500.0,0.00015873,2]
[419669094,1775272241483,-500.0,0.00015873,2]
[419669095,1775272241492,-501.37713859,0.00015873,2]
[419669096,1775272241500,-501.7767113,0.00015873,2]
[419669097,1775272241510,-500.0,0.00015873,2]
[419669098,1775272241519,-501.43830167,0.00015873,2]
[419669099,1775272241529,-500.0,0.00015873,2]
[419669100,1775272241538,-503.29243865,0.00015873,2]
[419669101,1775272241547,-501.15172574,0.00015873,2]
[419669102,1775272241556,-404.14422201,0.00015873,2]
[419669103,1775272241564,-501.55161327,0.00015873,2]
[419669104,1775272241574,-500.0,0.00015873,2]
[419669105,1775272241583,-500.0,0.00015873,2]
[419669106,1775272241591,-500.0,0.00015873,2]
[419669107,1775272241601,-500.0,0.00015873,2]
[419669108,1775272241610,-1000.0,0.00015888,2]
[419669109,1775272241619,-1000.0,0.00015889,2]
[419669110,1775272241629,-297.05355748,0.0001589,2]
[419669111,1775272241638,-3605.23,0.00015895,2]
[419669112,1775272241648,-33029.0565,0.000159,2]
[419669113,1775272241657,-1000.0,0.000159,2]
[419669114,1775272241666,-5000.0,0.000159,2]
[419669115,1775272241676,-1145179.0987,0.000159,2]
[419669116,1775272241685,-417.37182346,0.000159,2]
[419669117,1775272241695,-501.088556,0.000159,2]
[419669118,1775272241704,-501.088556,0.000159,2]
[419669120,1775272241714,-501.088556,0.000159,2]
[419669121,1775272241724,-660.913974,0.000159,2]
[419669122,1775272241733,-501.088556,0.000159,2]
[419669123,1775272241742,-660.913974,0.000159,2]
[419669124,1775272241751,-660.913974,0.000159,2]
[419669125,1775272241763,-660.913974,0.000159,2]
[419669126,1775272241772,-200.0,0.000159,5]
[419669127,1775272241781,-151.0,0.000159,2]
[419669128,1775272241791,-151.0,0.000159,2]
[419669129,1775272241799,-151.0,0.000159,2]
[419669130,1775272241809,-313.327004,0.000159,2]
[419669131,1775272241818,-313.327004,0.000159,2]
[419669132,1775272241827,-313.327004,0.000159,2]
[419669133,1775272241836,-6659.45009698,0.000159,2]
[419669134,1775272241846,-313.327004,0.000159,2]
[419669135,1775272241855,-959.2630038,0.000159,2]
[419669136,1775272241865,-445.73928415,0.000159,2]
[419669137,1775272241874,-1000.0,0.00015902,2]
[419669138,1775272241884,-1000.0,0.00015919,2]
[419669139,1775272241893,-1000.0,0.00015922,2]
[419669140,1775272241903,-4081.0,0.0001594,2]
[419669141,1775272241913,-503.23062407,0.00015973,2]
[419669142,1775272241923,-1000.0,0.00015986,2]
[419669143,1775272241932,-4760.1754573,0.00015988,2]
[419669144,1775272241941,-501.088556,0.00015988,2]
[419669145,1775272241950,-501.088556,0.00015988,2]
[419669146,1775272241959,-501.088556,0.00015988,2]
[419669147,1775272241969,-660.913974,0.00015988,2]
[419669148,1775272241978,-501.088556,0.00015988,2]
[419669149,1775272241987,-660.913974,0.00015988,2]
[419669150,1775272241996,-660.913974,0.00015988,2]
[419669151,1775272242005,-660.913974,0.00015988,2]
[419669152,1775272242014,-151.0,0.00015988,2]
[419669153,1775272242023,-151.0,0.00015988,2]
[419669154,1775272242032,-297.05355748,0.0001599,2]
[419669155,1775272242041,-666.0,0.00015999,2]
[419669156,1775272242050,-500.0,0.00015999,2]
[419669157,1775272242059,-153.32332907,0.00016,2]
[419669159,1775272242068,-152.61128617,0.00016,2]
[419669160,1775272242077,-153.40099906,0.00016,2]
[419669161,1775272242087,-150.96608219,0.00016,2]
[419669162,1775272242096,-151.47849991,0.00016,2]
[419669163,1775272242105,-256.52934676,0.00016,2]
[419669164,1775272242115,-154.4422212,0.00016,2]
[419669165,1775272242124,-287.34492743,0.00016,2]
[419669166,1775272242133,-153.65348451,0.00016,2]
[419669167,1775272242142,-150.52172746,0.00016,2]
[419669168,1775272242151,-151.47568116,0.00016,2]
[419669169,1775272242160,-153.45263565,0.00016,2]
[419669170,1775272242169,-694711.70550374,0.00016,2]
[419669171,1775272242179,-116655.04313508,0.00016,2]
[419669172,1775272242195,-1855.98980157,0.00016,2]
[419669173,1775272242243,-2743.90436912,0.00016,2]
[419669176,1775272243490,-500.0,0.00013698,2]
[419669177,1775272243500,-500.0,0.00013972,2]
[419669178,1775272243510,-500.0,0.00014246,2]
[419669179,1775272243519,-500.0,0.0001452,2]
[419669180,1775272243528,-500.0,0.00014794,2]
[419669181,1775272243538,-500.0,0.00015068,2]
[419669182,1775272243548,-11913.75907751,0.000159,2]
[419669183,1775272243557,-5469.01632934,0.00016,2]
[419669184,1775272243916,-443.4506406,0.00016,2]
[419669185,1775272243928,-20503.50605604,0.00016,2]
[419669186,1775272244132,-4169.22019546,0.00016,2]
[419669190,1775272246172,-1727.04008768,0.00012899,2]
[419669191,1775272246345,-128.68748054,0.00012899,2]
[419669210,1775273306686,167.61,8.778e-05,2]
[419669211,1775273364073,-1272.74,0.00010964,2]
[419669212,1775273364096,-600.0,0.00011059,2]
[419669213,1775273364117,-989.33,0.00011153,2]
[419669214,1775273364138,-600.0,0.00011283,2]
[419669215,1775273364159,-600.0,0.00011283,2]
[419669216,1775273364183,-600.0,0.00011283,2]
[419669217,1775273364204,-500.0,0.00011373,2]
[419669218,1775273364229,-16663.33169466,0.00011393,2]
[419669219,1775273369062,-7203.379848,0.00011393,2]
[419669220,1775273433448,-5343.44,0.00011313,2]
[419669221,1775273433555,-2453.52185756,0.00011313,2]
[419669222,1775273433564,-417.9675713,0.00011352,2]
[419669223,1775273433574,-250.0,0.00011362,2]
[419669224,1775273433583,-424.02894286,0.00011373,2]
[419669225,1775273433593,-300.0,0.00011373,2]
[419669226,1775273433602,-500.0,0.00011373,2]
[419669227,1775273433611,-5000.0,0.00011382,2]
[419669228,1775273433621,-600.0,0.00011382,2]
[419669229,1775273433630,-413.26808823,0.00011383,2]
[419669230,1775273433639,-297.05355748,0.00011383,2]
[419669231,1775273433649,-1200.0,0.00011392,2]
[419669232,1775273433658,-300.0,0.00011392,2]
[419669234,1775273433667,-300.0,0.00011392,2]
[419669235,1775273433676,-300.0,0.00011392,2]
[419669236,1775273433685,-150.0,0.00011392,2]
[419669237,1775273433694,-685.71695526,0.00011392,2]
[419669238,1775273433703,-500.0,0.00011392,2]
[419669239,1775273433712,-438.5846765,0.00011392,2]
[419669242,1775273433722,-500.0,0.00011392,2]
[419669245,1775273433732,-215.67672469,0.00011392,2]
[419669247,1775273433741,-500.0,0.00011392,2]
[419669248,1775273433750,-575.17386679,0.00011392,2]
[419669250,1775273433760,-500.0,0.00011392,2]
[419669252,1775273433769,-500.0,0.00011392,2]
[419669254,1775273433779,-500.0,0.00011392,2]
[419669256,1775273433788,-500.0,0.00011392,2]
[419669258,1775273433797,-500.0,0.00011392,2]
[419669259,1775273433806,-177.50485398,0.00011392,2]
[419669261,1775273433816,-500.0,0.00011392,2]
[419669262,1775273433825,-500.0,0.00011392,2]
[419669263,1775273433834,-195332.16558669,0.00011393,2]
[419669265,1775273438548,-294.4252985,0.00011393,2]
[419669266,1775273438588,-2280506.69757215,0.00011393,2]
[419669267,1775273438597,-600.0,0.00011413,2]
[419669268,1775273438607,-600.0,0.00011413,2]
[419669269,1775273438617,-500.0,0.00011452,2]
[419669270,1775273438626,-50599.25,0.00011493,2]
[419669271,1775273438635,-1847.13,0.00011507,2]
[419669272,1775273438644,-500.0,0.00011762,2]
[419669273,1775273438654,-2000.0,0.00011811,2]
[419669274,1775273438665,-500.0,0.00011817,2]
[419669275,1775273438676,-7796.96185749,0.00011823,2]
[419669276,1775273438687,-6772.9161,0.00011848,2]
[419669277,1775273438696,-500.0,0.00011872,2]
[419669278,1775273438706,-153.64087258,0.00011903,2]
[419669279,1775273438715,-15910.79500235,0.00011903,2]
[419669280,1775273438724,-445.73928416,0.00011903,2]
[419669281,1775273438734,-1000.0,0.00011921,2]
[419669282,1775273438744,-511.12151388,0.00011921,2]
[419669283,1775273438756,-500.0,0.00011927,2]
[419669284,1775273438766,-1500.0,0.00011948,2]
[419669285,1775273438776,-1266.82,0.00011948,2]
[419669286,1775273438786,-9999.99,0.00011948,2]
[419669287,1775273438796,-1570.92,0.00011948,2]
[419669288,1775273438807,-9999.99,0.00011948,2]
[419669289,1775273438821,-9999.99,0.00011948,2]
[419669290,1775273438832,-500.0,0.00011982,2]
[419669291,1775273438841,-999.99,0.00012003,2]
[419669292,1775273438850,-4999.99,0.00012003,2]
[419669293,1775273438860,-150.99,0.00012003,2]
[419669294,1775273438869,-1032.29,0.00012003,2]
[419669295,1775273438878,-15253.88,0.00012003,2]
[419669296,1775273438888,-9999.99,0.00012003,2]
[419669297,1775273438898,-9999.99,0.00012003,2]
[419669298,1775273438907,-1569.88,0.00012003,2]
[419669299,1775273438917,-299.99,0.00012003,2]
[419669300,1775273438926,-3343.96,0.00012003,2]
[419669301,1775273438935,-150.99,0.00012003,2]
[419669303,1775273438944,-500.0,0.00012037,2]
[419669305,1775273438954,-600.0,0.0001206,2]
[419669306,1775273438964,-250.0,0.0001206,2]
[419669307,1775273438974,-3657.01,0.00012087,2]
[419669308,1775273438983,-500.0,0.00012092,2]
[419669309,1775273438993,-500.0,0.00012147,2]
[419669310,1775273439005,-500.0,0.00012202,2]
[419669311,1775273439014,-151.0,0.00012217,2]
[419669312,1775273439024,-174.61919141,0.00012217,2]
[419669313,1775273439034,-256.89227692,0.00012217,2]
[419669314,1775273439043,-500.0,0.00012226,4]
[419669315,1775273439053,-500.0,0.00012226,4]
[419669316,1775273439063,-500.0,0.00012226,4]
[419669317,1775273439074,-500.0,0.00012226,4]
[419669318,1775273439084,-500.0,0.00012226,4]
[419669319,1775273439094,-500.0,0.00012226,4]
[419669320,1775273439104,-500.0,0.00012226,4]
[419669321,1775273439114,-300.40994394,0.00012226,4]
[419669322,1775273439124,-500.0,0.00012226,2]
[419669323,1775273439133,-500.0,0.00012226,2]
[419669324,1775273439144,-500.0,0.00012226,2]
[419669325,1775273439154,-500.0,0.00012226,2]
[419669326,1775273439164,-500.0,0.00012226,2]
[419669327,1775273439173,-500.0,0.00012226,2]
[419669328,1775273439183,-500.0,0.00012226,2]
[419669329,1775273439194,-504.52941329,0.00012226,2]
[419669330,1775273439203,-500.0,0.00012257,2]
[419669331,1775273439212,-151.0,0.00012272,2]
[419669332,1775273439223,-8055.83574034,0.00012282,2]
[419669333,1775273439231,-959.26300382,0.00012282,2]
[419669334,1775273439241,-500.0,0.00012312,2]
[419669335,1775273439251,-151.0,0.00012327,2]
[419669336,1775273439260,-15910.79500235,0.00012347,2]
[419669337,1775273439270,-151.0,0.00012382,2]
[419669338,1775273439279,-151.0,0.00012437,2]
[419669339,1775273439288,-255.0,0.00012452,2]
[419669340,1775273439298,-1500.0,0.00012468,2]
[419669341,1775273439307,-250.0,0.00012487,2]
[419669342,1775273439316,-151.0,0.00012492,2]
[419669343,1775273439326,-200.0,0.000125,4]
[419669344,1775273439335,-7298.34982605,0.000125,2]
[419669345,1775273439345,-5000.0,0.0001251,2]
[419669346,1775273439354,-600.0,0.0001251,2]
[419669347,1775273439364,-300.0,0.0001251,2]
[419669348,1775273439373,-369.0,0.00012514,2]
[419669349,1775273439383,-420.0,0.00012514,2]
[419669350,1775273439392,-223.93,0.00012525,2]
[419669351,1775273439402,-1680.0,0.00012532,2]
[419669352,1775273439411,-151.0,0.00012547,2]
[419669353,1775273439420,-1615.34998939,0.00012597,2]
[419669354,1775273439429,-4150.0003,0.000126,2]
[419669355,1775273439438,-98657.4916,0.000126,2]
[419669356,1775273439447,-500.0,0.000126,4]
[419669357,1775273439457,-151.0,0.00012602,2]
[419669358,1775273439466,-188.11543045,0.00012657,2]
[419669359,1775273439476,-500.0,0.00012692,2]
[419669360,1775273439485,-500.0,0.00012692,2]
[419669361,1775273439494,-500.0,0.00012692,2]
[419669362,1775273439503,-500.0,0.00012692,2]
[419669363,1775273439512,-500.0,0.00012692,2]
[419669364,1775273439521,-500.0,0.00012692,2]
[419669365,1775273439531,-500.0,0.00012692,2]
[419669366,1775273439539,-500.0,0.00012692,2]
[419669367,1775273439548,-500.0,0.00012692,2]
[419669368,1775273439558,-500.0,0.00012692,2]
[419669369,1775273439567,-500.0,0.00012692,2]
[419669370,1775273439576,-500.0,0.00012692,2]
[419669371,1775273439585,-500.0,0.00012692,2]
[419669372,1775273439594,-500.0,0.00012692,2]
[419669373,1775273439604,-500.0,0.00012692,2]
[419669374,1775273439613,-500.0,0.00012692,2]
[419669375,1775273439623,-502.00566011,0.00012692,2]
[419669376,1775273439632,-500.0,0.00012692,2]
[419669377,1775273439640,-500.0,0.00012692,2]
[419669378,1775273439649,-500.0,0.00012692,2]
[419669379,1775273439660,-500.0,0.00012692,2]
[419669380,1775273439670,-500.0,0.00012692,2]
[419669381,1775273439681,-500.0,0.00012692,2]
[419669382,1775273439691,-500.0,0.00012692,2]
[419669383,1775273439703,-500.0,0.00012692,2]
[419669384,1775273439712,-151.0,0.00012692,2]
[419669385,1775273439721,-500.0,0.00012692,2]
[419669386,1775273439731,-500.0,0.00012692,2]
[419669387,1775273439740,-151.0,0.00012692,2]
[419669388,1775273439749,-500.0,0.00012692,2]
[419669389,1775273439759,-151.0,0.00012692,2]
[419669390,1775273439768,-500.0,0.00012692,2]
[419669391,1775273439777,-500.0,0.00012692,2]
[419669392,1775273439786,-151.0,0.00012692,2]
[419669393,1775273439796,-500.0,0.00012692,2]
[419669394,1775273439806,-500.0,0.00012692,2]
[419669395,1775273439818,-151.0,0.00012692,2]
[419669396,1775273439828,-500.0,0.00012692,2]
[419669397,1775273439839,-500.0,0.00012692,2]
[419669398,1775273439848,-151.0,0.00012692,2]
[419669399,1775273439858,-500.0,0.00012692,2]
[419669400,1775273439867,-500.0,0.00012692,2]
[419669401,1775273439878,-151.0,0.00012692,2]
[419669402,1775273439888,-500.0,0.00012692,2]
[419669403,1775273439899,-151.0,0.00012692,2]
[419669404,1775273439910,-500.0,0.00012692,2]
[419669405,1775273439920,-500.0,0.00012692,2]
[419669406,1775273439930,-151.0,0.00012692,2]
[419669407,1775273439940,-151.0,0.00012692,2]
[419669408,1775273439950,-500.0,0.00012692,2]
[419669409,1775273439959,-151.0,0.00012692,2]
[419669410,1775273439968,-151.0,0.00012692,2]
[419669411,1775273439978,-500.0,0.00012692,2]
[419669412,1775273439987,-151.0,0.00012692,2]
[419669413,1775273439996,-151.0,0.00012692,2]
[419669414,1775273440005,-500.0,0.00012692,2]
[419669415,1775273440014,-151.0,0.00012692,2]
[419669416,1775273440024,-151.0,0.00012692,2]
[419669417,1775273440033,-500.0,0.00012692,2]
[419669418,1775273440043,-151.0,0.00012692,2]
[419669419,1775273440052,-500.0,0.00012692,2]
[419669420,1775273440061,-151.0,0.00012692,2]
[419669421,1775273440070,-500.0,0.00012692,2]
[419669422,1775273440079,-151.0,0.00012692,2]
[419669423,1775273440089,-151.0,0.00012692,2]
[419669424,1775273440097,-151.0,0.00012692,2]
[419669425,1775273440106,-151.0,0.00012692,2]
[419669426,1775273440116,-151.0,0.00012692,2]
[419669427,1775273440125,-220.19200826,0.00012692,2]
[419669428,1775273440134,-151.0,0.00012692,2]
[419669429,1775273440143,-151.0,0.00012692,2]
[419669430,1775273440152,-151.0,0.00012692,2]
[419669431,1775273440162,-151.0,0.00012692,2]
[419669432,1775273440171,-151.0,0.00012692,2]
[419669433,1775273440180,-151.0,0.00012692,2]
[419669434,1775273440190,-994.42051784,0.00012692,2]
[419669435,1775273440199,-151.0,0.00012692,2]
[419669436,1775273440208,-2500.0,0.00012699,2]
[419669437,1775273440217,-800.0,0.000127,4]
[419669438,1775273440227,-181.08010149,0.00012765,2]
[419669439,1775273440239,-500.0,0.00012773,2]
[419669440,1775273440249,-15910.79500235,0.00012791,2]
[419669441,1775273440259,-2437.2089,0.00012798,2]
[419669442,1775273440268,-33029.0565,0.00012799,2]
[419669443,1775273440278,-5490.724,0.00012799,2]
[419669444,1775273440288,-223.93,0.00012799,2]
[419669445,1775273440298,-181.43578348,0.00012799,2]
[419669446,1775273440308,-1100.0,0.000128,4]
[419669447,1775273440317,-503.23062407,0.00012873,2]
[419669448,1775273440327,-500.0,0.00012873,2]
[419669449,1775273440336,-500.0,0.00012873,2]
[419669450,1775273440345,-500.0,0.00012873,2]
[419669451,1775273440355,-297.05355748,0.00012889,2]
[419669452,1775273440366,-1400.0,0.000129,4]
[419669453,1775273440375,-7298.34982605,0.00012986,2]
[419669454,1775273440385,-250.0,0.00013,2]
[419669455,1775273440394,-1345.9608693,0.00013016,2]
[419669456,1775273440403,-223.93,0.00013073,2]
[419669457,1775273440412,-519.0,0.00013111,2]
[419669458,1775273440421,-167.61,0.00013168,2]
[419669459,1775273440430,-15910.79500235,0.00013235,2]
[419669460,1775273440439,-2000.0,0.00013287,2]
[419669461,1775273440449,-187.78006525,0.00013313,2]
[419669462,1775273440458,-223.93,0.00013347,2]
[419669463,1775273440467,-203.7698014,0.00013421,2]
[419669464,1775273440477,-1000.0,0.00013421,2]
[419669465,1775273440486,-1007.047752,0.00013421,2]
[419669466,1775273440495,-213.9698,0.00013424,2]
[419669467,1775273440504,-7298.34982605,0.00013471,2]
[419669468,1775273440514,-2088.01,0.000136,2]
[419669469,1775273440523,-433.0,0.00013614,2]
[419669470,1775273440532,-223.93856465,0.00013621,2]
[419669471,1775273440542,-15910.79500235,0.00013679,2]
[419669472,1775273440552,-500.0,0.00013698,2]
[419669473,1775273440561,-500.0,0.00013698,2]
[419669474,1775273440570,-500.0,0.00013698,2]
[419669475,1775273440579,-500.0,0.00013698,2]
[419669476,1775273440589,-500.0,0.00013698,2]